bitfinex/quotes_ETHUSD_20251015
["timestamp","ask_amount","ask_price","bid_price","bid_amount"]
[1760539357214,0.6694,4052.9,4051.3,0.15]
[1760539357422,2.46700815,4053.5,4051.4,3.0765]
[1760539357638,0.2355,4052.8,4050.8,0.4375]
[1760539357785,0.4339,4052.7,4051.7,2.46809371]
[1760539358192,0.4339,4052.7,4051.6,2.643]
[1760539358766,0.4339,4052.7,4050.9,0.4375]
[1760539358890,2.46763198,4052.5,4051.6,2.4681194]
[1760539359082,2.46763198,4052.5,4051.4,5.11127858]
[1760539359288,2.46763198,4052.5,4051.7,2.46809494]
[1760539359500,2.46755169,4052.6,4051.5,2.46816486]
[1760539359699,0.4339,4052.7,4052.1,2.4678239]
[1760539359897,2.90139116,4052.7,4051.8,2.46798764]
[1760539360097,0.4339,4052.6,4050.8,2.46864816]
[1760539360315,0.4339,4052.6,4051.9,2.46793392]
[1760539360516,0.2355,4052.8,4051.5,2.642]
[1760539360728,0.2355,4052.8,4051.8,2.46799124]
[1760539360905,2.46762264,4052.5,4050.8,0.4375]
[1760539361114,2.90139618,4052.7,4050.9,0.559]
[1760539361115,2.46755169,4052.6,4050.9,0.559]
[1760539361423,2.46755169,4052.6,4051.8,2.46800537]
[1760539361586,2.46755169,4052.6,4051.0,2.46852628]
[1760539361587,2.90140481,4052.7,4051.9,2.46797791]
[1760539361790,0.4339,4052.7,4051.9,2.46797791]
[1760539362122,0.4339,4052.7,4050.9,0.559]
[1760539362426,2.46755574,4052.6,4051.8,2.46801974]
[1760539362643,2.46755574,4052.6,4051.9,2.46797498]
[1760539362849,2.46755574,4052.6,4051.8,2.46802001]
[1760539363035,2.46755574,4052.6,4051.9,2.46796695]
[1760539363232,0.4339,4052.7,4050.8,0.4375]
[1760539363438,10.249454,4052.5,4049.8,0.1616]
[1760539363771,0.2355,4050.9,4050.5,2.4688007]
[1760539363916,0.2355,4051.5,4050.3,0.1538]
[1760539364106,0.2355,4051.5,4050.9,2.46853961]
[1760539364319,0.2355,4051.5,4050.6,2.46871631]
[1760539364641,0.4339,4051.4,4049.5,0.4375]
[1760539364940,0.4339,4051.4,4049.6,5.10837039]
[1760539364941,2.46841519,4051.2,4049.6,5.10837039]
[1760539365152,2.46841519,4051.2,4049.7,2.639]
[1760539365153,2.46845291,4051.2,4049.7,2.639]
[1760539365335,0.4339,4051.4,4050.3,2.46890054]
[1760539365520,0.4339,4051.4,4050.4,2.46889047]
[1760539365705,0.4339,4051.4,4049.6,2.4693575]
[1760539365706,0.4339,4051.4,4050.5,2.46882404]
[1760539366110,2.46836149,4051.3,4050.1,0.1538]
[1760539366350,2.70373279,4051.5,4048.5,2.46999835]
[1760539366510,2.70373279,4051.5,4048.9,0.5875]
[1760539366511,2.46856976,4051.0,4048.9,0.5875]
[1760539366853,2.46846535,4051.1,4050.0,2.46913555]
[1760539367053,0.4339,4051.2,4049.4,0.4375]
[1760539367343,2.70373622,4051.5,4048.9,0.15]
[1760539367344,2.46874247,4050.7,4049.5,1.584]
[1760539367538,0.4339,4050.6,4049.8,2.46925371]
[1760539367841,2.90241508,4051.1,4049.1,2.636]
[1760539368047,2.46869174,4050.8,4049.9,2.469139]
[1760539368210,0.4339,4051.1,4050.1,2.46907084]
[1760539368410,0.4339,4051.0,4048.9,0.15]
[1760539368612,2.46859222,4050.9,4049.6,2.46935673]
[1760539368843,2.46870911,4050.7,4049.1,2.638]
[1760539369044,0.4339,4050.8,4049.1,2.638]
[1760539369354,0.2355,4051.5,4049.1,0.4375]
[1760539369509,0.4339,4051.2,4049.1,0.4375]
[1760539369716,0.4339,4051.2,4048.9,0.15]
[1760539370083,0.4339,4051.2,4050.0,2.46908259]
[1760539370224,0.4339,4051.2,4049.0,0.4375]
[1760539370425,0.4339,4051.2,4049.1,2.77541848]
[1760539370739,2.4688369,4050.5,4049.2,2.638]
[1760539370945,2.46892938,4050.4,4049.1,0.30573386]
[1760539371250,0.4339,4050.5,4049.9,2.46915376]
[1760539371846,2.4685134,4051.1,4050.2,2.46899139]
[1760539372011,2.90232071,4051.2,4050.2,2.46897026]
[1760539372341,0.4339,4051.2,4049.3,0.4375]
[1760539372550,2.46860549,4050.9,4050.1,2.46902766]
[1760539372718,2.46852772,4051.0,4050.2,2.46900401]
[1760539372917,0.4339,4051.2,4050.2,2.46900401]
[1760539372918,2.46858726,4050.9,4050.2,2.46900401]
[1760539373149,2.46857039,4051.0,4050.2,2.46900401]
[1760539373348,0.4339,4051.2,4050.0,2.46911823]
[1760539373547,0.4339,4051.1,4048.9,0.15]
[1760539373715,4.748768,4051.0,4048.9,0.15]
[1760539373936,2.46864816,4050.8,4049.4,2.46948735]
[1760539374181,2.46904886,4050.2,4049.4,2.46948735]
[1760539374344,2.46881386,4050.6,4048.9,0.17469806]
[1760539374540,2.4689559,4050.3,4049.6,2.46933051]
[1760539374754,0.4293,4050.7,4048.9,0.61769806]
[1760539374755,0.4293,4050.7,4049.5,2.4694263]
[1760539374950,0.4293,4050.7,4049.8,2.46924221]
[1760539375175,0.2201,4049.9,4048.9,0.15]
[1760539375639,0.2201,4049.9,4049.4,2.46949049]
[1760539376040,0.2201,4049.9,4049.5,2.46943388]
[1760539376270,0.2201,4050.6,4048.9,0.15]
[1760539376469,0.2201,4050.6,4050.0,2.46909907]
[1760539376791,0.2201,4050.6,4050.3,2.46889555]
[1760539376944,0.4293,4051.0,4050.3,2.46889555]
[1760539376945,0.2201,4050.9,4050.3,2.46889555]
[1760539377354,0.2201,4050.9,4050.2,2.46900057]
[1760539378084,0.2201,4050.9,4050.1,2.46905491]
[1760539378288,2.46865888,4050.8,4049.9,2.46919451]
[1760539378589,0.2355,4051.5,4050.7,0.1538]
[1760539378756,0.2355,4051.5,4050.0,0.5968]
[1760539378936,2.89710287,4052.2,4050.1,0.46769074]
[1760539379137,0.2201,4051.8,4051.3,2.46833997]
[1760539379344,0.4293,4052.2,4051.5,2.46816082]
[1760539379679,0.2201,4052.3,4051.2,0.1616]
[1760539379880,0.2201,4052.6,4052.0,2.46789131]
[1760539380253,0.2201,4052.6,4052.2,2.46776696]
[1760539380464,0.2201,4052.6,4052.3,2.46768448]
[1760539380759,0.2201,4052.9,4051.4,0.443]
[1760539380972,2.89673207,4052.8,4051.9,2.46792709]
[1760539381178,2.89673207,4052.8,4051.4,2.63]
[1760539381179,0.87547609,4052.8,4051.7,2.46804846]
[1760539381350,2.46755156,4052.7,4051.2,2.7906]
[1760539381557,0.4293,4052.8,4051.7,2.46804972]
[1760539381773,2.46754281,4052.7,4051.2,2.7906]
[1760539381962,2.46754281,4052.7,4051.2,0.1616]
[1760539382139,2.46758869,4052.6,4051.8,2.46802164]
[1760539382342,2.46758869,4052.6,4051.2,2.7906]
[1760539382343,2.46763543,4052.5,4051.2,2.7906]
[1760539382589,2.46763543,4052.5,4051.2,0.1616]
[1760539382774,0.4293,4052.8,4051.2,2.7886]
[1760539382954,0.4293,4052.8,4052.2,2.46775712]
[1760539383140,0.4293,4052.8,4052.3,2.46772634]
[1760539383342,2.68750015,4052.9,4052.2,2.46775075]
[1760539383562,2.46766373,4052.5,4051.6,2.46815547]
[1760539383776,0.2201,4051.7,4050.3,0.443]
[1760539383987,0.4293,4051.6,4050.0,0.9438]
[1760539384165,0.4293,4051.6,4050.9,2.46854312]
[1760539384352,0.4293,4051.6,4050.3,0.02468952]
[1760539384551,2.46822692,4051.5,4050.3,0.14114895]
[1760539384744,2.46817498,4051.6,4050.1,0.443]
[1760539384945,0.4293,4051.5,4050.1,2.46906025]
[1760539385160,2.46865561,4050.8,4050.0,2.4691244]
[1760539385374,2.68881451,4050.7,4050.0,2.4691244]
[1760539385677,0.2201,4050.7,4049.6,0.443]
[1760539385883,0.2201,4051.7,4050.4,2.46884951]
[1760539386043,0.2201,4051.7,4049.8,2.46925774]
[1760539386044,0.2201,4051.7,4050.3,0.6079]
[1760539386239,3.12580042,4051.7,4050.6,2.46871234]
[1760539386474,2.46827008,4051.5,4050.7,2.46870667]
[1760539386857,2.46827008,4051.5,4050.8,2.46864236]
[1760539387057,2.46820336,4051.6,4050.7,2.46869575]
[1760539387247,0.6577,4051.7,4050.3,0.1538]
[1760539387248,0.2201,4051.7,4050.3,0.17848952]
[1760539387442,0.2201,4051.7,4050.3,0.1538]
[1760539387694,0.4376,4052.6,4050.4,0.47878891]
[1760539387845,0.4376,4052.6,4051.7,2.46803908]
[1760539388176,2.468083,4053.4,4052.0,2.46786195]
[1760539388177,2.68747743,4052.9,4052.0,2.46786195]
[1760539388390,0.2201,4052.9,4051.6,0.1616]
[1760539388549,2.46748473,4052.8,4052.0,2.46790972]
[1760539388744,2.68747281,4052.9,4052.1,2.467811]
[1760539388977,0.001,4053.4,4052.2,0.17467795]
[1760539389174,0.001,4053.4,4052.2,0.15]
[1760539389508,0.001,4053.4,4053.3,2.46712555]
[1760539389708,0.001,4053.4,4053.0,2.46729686]
[1760539389910,0.001,4053.4,4052.3,0.4541]
[1760539389911,0.001,4053.4,4052.7,2.46744274]
[1760539390106,0.4386,4053.4,4052.3,2.624]
[1760539390307,0.4386,4053.4,4051.7,0.4541]
[1760539390308,0.7283486,4053.4,4051.7,0.4541]
[1760539390473,0.7283486,4053.4,4051.3,0.1616]
[1760539390474,11.61699,4053.3,4051.3,0.1616]
[1760539390673,0.4376,4053.3,4051.3,0.1616]
[1760539390874,0.4376,4053.3,4051.3,0.6157]
[1760539391173,0.4376,4053.3,4052.3,2.46767707]
[1760539391380,0.2259,4052.4,4051.3,0.1616]
[1760539391604,2.693575,4052.4,4051.3,2.62993583]
[1760539391788,2.46773437,4052.3,4051.4,2.46827759]
[1760539391986,0.2259,4052.4,4051.5,2.4682092]
[1760539392188,0.2259,4052.4,4050.8,0.4541]
[1760539392601,0.2259,4052.4,4050.9,2.628]
[1760539392790,0.2259,4052.4,4051.0,0.72007656]
[1760539393108,0.2259,4052.4,4051.5,2.46821183]
[1760539393299,2.46777525,4052.3,4051.6,2.46815195]
[1760539393499,0.2259,4052.8,4051.4,2.46822408]
[1760539393678,0.2259,4052.8,4051.5,2.46822164]
[1760539393876,0.001,4052.9,4051.6,5.84146438]
[1760539394076,0.001,4052.9,4051.0,3.18857773]
[1760539394077,4.802741,4052.7,4051.0,1.17417656]
[1760539394289,0.6635,4052.8,4051.4,2.46823212]
[1760539394491,0.6635,4052.8,4051.1,2.46845217]
[1760539394492,2.46785729,4052.1,4051.1,2.46845217]
[1760539394690,2.90553542,4052.0,4050.5,2.627]
[1760539394926,0.2259,4051.9,4050.5,2.627]
[1760539395208,0.2259,4051.9,4050.3,0.1538]
[1760539395411,0.2259,4051.9,4049.6,2.46934596]
[1760539395412,2.46876977,4050.7,4049.6,2.46934596]
[1760539395597,2.46874426,4050.7,4049.9,2.46914767]
[1760539395779,0.2259,4051.9,4049.5,0.1616]
[1760539395979,2.46846535,4051.1,4050.1,0.1538]
[1760539396292,0.4376,4051.1,4049.5,0.1616]
[1760539396500,0.4376,4051.1,4049.6,0.02469379]
[1760539396702,0.2259,4051.5,4050.6,2.46872616]
[1760539396902,0.4376,4051.4,4050.0,0.002]
[1760539397114,2.46869285,4050.8,4050.0,2.47112676]
[1760539397325,0.4376,4050.9,4050.0,0.002]
[1760539397534,2.46877184,4050.6,4050.0,0.002]
[1760539397827,2.46872253,4050.7,4050.0,0.002]
[1760539398397,0.4376,4050.9,4050.0,0.002]
[1760539398592,0.2259,4051.5,4050.0,0.002]
[1760539398822,2.46907483,4050.1,4050.0,0.002]
[1760539399399,2.90667483,4050.1,4050.0,0.002]
[1760539400095,9.43104083,4050.1,4050.0,0.002]
[1760539400298,5.80546983,4050.1,4050.0,0.002]
[1760539400541,6.56354494,4050.1,4050.0,0.002]
[1760539400690,8.29154494,4050.1,4050.0,0.002]
[1760539400894,35.07538594,4050.1,4050.0,0.002]
[1760539401115,2.46980661,4048.9,4048.8,0.003]
[1760539401320,2.69570661,4048.9,4048.8,0.003]
[1760539401531,7.53373361,4048.9,4048.8,0.003]
[1760539402033,3.13330661,4048.9,4048.8,0.003]
[1760539402398,0.6635,4048.9,4048.8,0.003]
[1760539402738,1.728,4049.4,4048.8,0.003]
[1760539402892,0.6635,4049.5,4048.8,0.003]
[1760539403097,0.2259,4049.5,4048.8,0.003]
[1760539403298,0.2259,4049.5,4048.9,2.46980661]
[1760539403526,0.4376,4050.0,4049.2,2.46957252]
[1760539403825,0.12037989,4050.8,4049.1,0.15]
[1760539403826,0.4376,4050.6,4049.1,0.15]
[1760539404034,0.4376,4050.6,4049.4,2.46945274]
[1760539404035,2.46892192,4050.4,4049.4,2.46945274]
[1760539404207,2.46892192,4050.4,4049.3,2.46955122]
[1760539404411,2.46887039,4050.5,4049.4,2.46949778]
[1760539404630,2.46895528,4050.3,4049.1,0.15]
[1760539404913,2.46884367,4050.5,4049.1,0.15]
[1760539405112,2.46884367,4050.5,4048.8,0.003]
[1760539405113,0.4376,4050.6,4048.8,0.003]
[1760539405321,2.46955243,4049.4,4048.8,0.003]
[1760539405721,2.46963029,4049.2,4048.8,0.003]
[1760539405932,0.4376,4049.6,4048.8,2.47286739]
[1760539405933,3.13289633,4049.6,4048.8,2.47286739]
[1760539406106,3.13289633,4049.6,4048.8,2.47286506]
[1760539406107,0.6635,4049.6,4048.8,2.47286506]
[1760539406308,0.4376,4049.5,4048.8,0.003]
[1760539406506,2.46980661,4048.9,4048.8,0.003]
[1760539406839,19.00732561,4048.9,4048.8,0.003]
[1760539407039,7.85935761,4048.9,4048.8,0.003]
[1760539407252,5.17790661,4048.9,4048.8,0.003]
[1760539407548,5.28540661,4048.9,4048.8,0.003]
[1760539408142,7.01340661,4048.9,4048.8,0.003]
[1760539408443,21.76159661,4048.9,4048.8,0.003]
[1760539408648,2.47053913,4047.7,4047.4,0.002]
[1760539408818,4.63540661,4048.9,4047.4,0.002]
[1760539408819,2.47041675,4047.9,4047.4,0.002]
[1760539409021,2.47013633,4048.4,4047.4,0.002]
[1760539409350,2.47017027,4048.4,4047.5,2.4706609]
[1760539409508,0.2259,4048.6,4047.4,0.002]
[1760539410138,2.295195,4048.5,4047.4,0.002]
[1760539410342,2.6965609,4047.5,4047.4,0.002]
[1760539410707,8.1659119,4047.5,4047.4,0.002]
[1760539410954,9.8939119,4047.5,4047.4,0.002]
[1760539411248,17.4401129,4047.5,4047.4,0.002]
[1760539411658,7.1455759,4047.5,4047.4,0.002]
[1760539411872,2.6965609,4047.5,4047.4,0.002]
[1760539412025,3.029836,4048.5,4047.4,0.002]
[1760539412229,2.47019265,4048.3,4047.4,0.002]
[1760539412446,0.4376,4048.4,4047.4,2.47270875]
[1760539412654,0.2259,4048.6,4047.4,2.47270875]
[1760539412655,0.2259,4048.6,4047.5,2.4706609]
[1760539412847,0.2259,4048.6,4048.0,2.47034985]
[1760539413036,0.2259,4049.0,4048.0,2.47034985]
[1760539413340,2.46982751,4050.6,4047.9,0.15]
[1760539413341,0.4376,4049.8,4047.9,0.15]
[1760539413733,3.473244,4049.5,4047.9,0.15]
[1760539413949,3.396107,4049.3,4048.0,2.77781435]
[1760539414223,2.46970208,4049.1,4048.2,2.47017972]
[1760539414423,2.46961781,4049.3,4048.3,2.47012495]
[1760539414640,0.4376,4049.8,4048.0,0.30746243]
[1760539414969,0.4376,4049.8,4048.0,2.47030941]
[1760539415126,2.69504839,4050.0,4048.3,2.47017266]
[1760539415327,2.46901981,4050.2,4048.4,2.94890534]
[1760539415521,2.90648723,4050.5,4048.4,2.94890534]
[1760539415522,2.69486796,4050.3,4048.5,2.47005063]
[1760539415774,5.779119,4050.0,4048.4,0.4541]
[1760539415929,2.46925774,4049.8,4048.4,0.4541]
[1760539416125,13.067325,4049.8,4048.4,0.4541]
[1760539416429,8.507973,4049.6,4047.9,0.15]
[1760539416748,2.47001467,4048.6,4047.6,0.15]
[1760539416945,2.47012662,4048.4,4047.6,2.62058463]
[1760539417125,2.47005621,4048.5,4047.7,2.47048673]
[1760539417331,2.47005063,4048.5,4047.3,0.003]
[1760539417526,2.47014954,4048.4,4047.5,2.47063343]
[1760539417761,0.4636,4048.6,4047.5,2.47065649]
[1760539417933,0.4636,4049.2,4047.3,0.003]
[1760539418132,2.46931871,4049.7,4048.5,0.15]
[1760539418338,1.9522,4049.9,4048.5,2.61999659]
[1760539418559,0.2242,4049.9,4048.5,0.15]
[1760539418738,0.2242,4049.9,4048.7,2.46990556]
[1760539418944,0.2242,4049.9,4048.5,0.15]
[1760539419269,0.2242,4049.9,4047.4,2.619]
[1760539419270,0.4296,4049.8,4048.3,0.15]
[1760539419452,0.2242,4049.9,4048.4,0.4649]
[1760539419764,2.87988,4049.8,4048.3,0.15]
[1760539419965,5.836058,4049.7,4047.4,0.4669]
[1760539420264,2.69340503,4049.9,4047.7,0.15]
[1760539420265,2.46997341,4048.7,4047.7,0.15]
[1760539420469,0.4296,4048.7,4047.4,0.002]
[1760539420635,2.47037213,4048.0,4047.4,0.002]
[1760539420838,2.47006159,4048.5,4047.4,2.47267888]
[1760539421137,2.47041687,4047.9,4047.4,0.002]
[1760539421461,2.47020307,4048.3,4047.4,0.002]
[1760539421628,2.46998962,4048.6,4047.4,2.93761825]
[1760539421831,0.4296,4048.5,4047.4,0.002]
[1760539422032,2.47016446,4048.4,4047.4,0.002]
[1760539422229,2.47014503,4048.4,4047.6,2.47059075]
[1760539422477,2.46985684,4048.9,4047.4,0.002]
[1760539422631,0.4296,4049.1,4047.5,0.4649]
[1760539422836,1.728,4048.9,4047.6,2.47058663]
[1760539423060,0.2308,4048.8,4047.4,2.47270342]
[1760539423234,2.46998962,4048.6,4047.4,0.002]
[1760539423436,2.47052733,4047.8,4047.4,0.002]
[1760539423959,2.47048883,4047.8,4047.4,0.002]
[1760539424162,0.2308,4047.9,4047.4,0.002]
[1760539424467,2.47048719,4047.8,4047.4,0.002]
[1760539424664,2.4706609,4047.5,4047.4,0.002]
[1760539425239,2.9002609,4047.5,4047.4,0.002]
[1760539425734,2.9002609,4047.5,4047.3,0.003]
[1760539425735,7.891966,4047.2,4045.6,2.47177883]
[1760539426043,1.728,4047.4,4045.7,0.4649]
[1760539426369,0.2308,4047.9,4045.7,2.47175019]
[1760539426370,6.37056108,4047.2,4045.7,2.47175019]
[1760539426602,0.4296,4047.3,4046.1,2.47150925]
[1760539426901,2.47077163,4047.4,4046.2,0.1538]
[1760539427067,4.305479,4047.8,4046.2,0.1538]
[1760539427270,0.4296,4047.3,4045.0,0.012]
[1760539427471,14.756984,4047.2,4045.3,2.62198246]
[1760539427712,0.4296,4047.1,4045.6,2.47177101]
[1760539427910,1.728,4047.6,4045.3,0.15]
[1760539428114,2.4714868,4046.2,4045.3,0.15]
[1760539428267,0.2308,4046.1,4045.0,0.012]
[1760539428473,0.4296,4046.0,4045.0,0.012]
[1760539428682,2.47200206,4045.4,4045.0,0.012]
[1760539428868,2.47200386,4045.4,4045.0,0.012]
[1760539429182,0.4296,4046.0,4045.0,0.012]
[1760539429391,0.55460973,4046.0,4045.0,0.012]
[1760539429591,2.47171338,4045.8,4045.0,0.012]
[1760539429782,0.55460973,4046.0,4045.0,0.012]
[1760539429998,2.47212677,4045.1,4045.0,0.012]
[1760539430170,0.4296,4045.7,4045.0,0.012]
[1760539430688,2.47212677,4045.1,4045.0,0.012]
[1760539431006,0.4296,4045.7,4045.0,0.012]
[1760539431219,2.4720507,4045.3,4045.0,0.012]
[1760539431570,10.676494,4045.8,4045.0,0.012]
[1760539431775,2.47212677,4045.1,4045.0,0.012]
[1760539432173,15.829849,4045.1,4043.1,0.1616]
[1760539432407,16.525396,4044.7,4042.6,2.4736094]
[1760539432605,16.525396,4044.7,4042.5,0.1538]
[1760539432606,2.47301218,4043.7,4042.8,2.47352734]
[1760539432805,2.7037291,4043.8,4042.8,2.47352734]
[1760539432980,0.2308,4044.6,4043.3,2.47317592]
[1760539433303,0.2308,4044.6,4043.6,2.47303215]
[1760539433507,0.2308,4044.6,4043.4,0.1616]
[1760539434025,0.2308,4045.0,4043.4,0.6265]
[1760539434221,0.12388064,4046.0,4043.5,0.48963104]
[1760539434222,0.2308,4045.8,4043.5,0.48963104]
[1760539434410,0.2308,4046.1,4043.5,0.4649]
[1760539434619,0.2308,4046.4,4044.6,2.47243237]
[1760539434794,0.2308,4046.4,4045.8,2.47168413]
[1760539434991,0.12137064,4046.9,4045.6,2.62181443]
[1760539435322,0.2308,4047.4,4045.6,0.15]
[1760539435511,0.2308,4047.4,4046.7,2.47110219]
[1760539435834,0.4296,4047.7,4046.5,0.1538]
[1760539436137,2.4707226,4047.4,4046.4,2.47127179]
[1760539436449,10.12665669,4047.4,4045.6,0.15]
[1760539436588,10.12665669,4047.4,4044.7,2.8725782]
[1760539436589,0.2213,4046.5,4045.2,0.15]
[1760539436789,0.2213,4046.5,4045.7,2.47174034]
[1760539437104,0.2213,4046.5,4045.5,2.47186464]
[1760539437307,0.4536,4046.4,4044.7,0.40024324]
[1760539437747,2.47120162,4046.7,4044.8,0.4275]
[1760539437931,0.2213,4046.8,4045.0,2.47218788]
[1760539438136,0.2213,4046.8,4046.0,2.47154301]
[1760539438339,0.2213,4046.8,4045.1,0.1508]
[1760539438645,2.69239089,4046.8,4045.4,2.47194306]
[1760539438810,0.2213,4046.8,4046.1,2.47146402]
[1760539439005,1.728,4047.2,4045.9,2.47163047]
[1760539439222,0.6336,4047.6,4045.5,0.24719431]
[1760539439223,1.728,4047.4,4045.5,0.24719431]
[1760539439396,13.755559,4047.5,4045.1,2.62291193]
[1760539439397,0.4544,4047.5,4045.6,0.4275]
[1760539439591,2.4711944,4046.7,4045.8,2.4716982]
[1760539439797,0.2213,4046.6,4045.6,2.47181619]
[1760539440039,0.2213,4046.9,4045.2,2.47206565]
[1760539440218,0.4544,4047.6,4045.6,0.4275]
[1760539440420,0.4544,4047.6,4046.4,2.47131022]
[1760539440627,2.47085672,4047.2,4045.9,0.4275]
[1760539440809,0.4544,4047.6,4046.0,2.47157686]
[1760539441005,0.4544,4047.6,4045.9,0.4275]
[1760539441246,2.47072194,4047.4,4045.3,0.4275]
[1760539441570,2.47170077,4045.8,4044.9,2.47223617]
[1760539441718,2.47170077,4045.8,4044.5,0.4275]
[1760539441719,0.2213,4045.9,4044.5,0.4275]
[1760539442367,0.2213,4045.9,4043.9,0.1538]
[1760539442538,0.4544,4045.8,4043.9,0.1538]
[1760539442750,0.4544,4045.8,4044.0,0.4275]
[1760539442951,0.4544,4045.8,4044.7,2.47235397]
[1760539443132,0.2213,4045.9,4043.9,0.1538]
[1760539443335,2.92617843,4045.7,4044.8,2.47228587]
[1760539443648,2.92617843,4045.7,4044.0,0.4275]
[1760539443649,2.47201602,4045.3,4044.0,0.4275]
[1760539443849,0.4544,4045.7,4044.1,0.02472738]
[1760539444063,0.4544,4045.7,4044.0,0.4275]
[1760539444362,0.4544,4045.7,4043.6,2.47302932]
[1760539444363,2.47249781,4044.5,4043.6,2.47302932]
[1760539444525,0.2213,4045.9,4043.4,0.1616]
[1760539444526,0.2213,4044.4,4043.4,0.1616]
[1760539444726,2.69391519,4044.4,4043.6,2.47300599]
[1760539444921,0.2213,4044.4,4043.4,0.1616]
[1760539445288,0.2213,4045.3,4043.5,0.45223104]
[1760539445418,2.47238056,4044.7,4044.5,0.002]
[1760539445620,2.47223863,4045.0,4044.5,0.002]
[1760539445957,0.4544,4045.2,4044.5,0.002]
[1760539446144,0.2213,4045.3,4044.5,2.47445316]
[1760539446354,0.2298,4046.1,4044.8,2.4722971]
[1760539446654,2.47178517,4045.7,4044.8,2.47229402]
[1760539446843,3.094121,4045.8,4044.5,0.002]
[1760539447040,0.2298,4046.1,4044.5,0.002]
[1760539447041,2.4721132,4045.2,4044.5,0.002]
[1760539447229,2.47203948,4045.3,4044.5,2.47446928]
[1760539447441,2.47190893,4045.5,4044.5,2.47446928]
[1760539447638,0.4438,4045.7,4044.5,2.47446928]
[1760539447639,0.4438,4045.7,4044.5,0.002]
[1760539447956,2.47176006,4045.8,4044.8,2.47226594]
[1760539448123,2.47186995,4045.6,4044.7,2.47235421]
[1760539448324,2.47186995,4045.6,4044.5,2.474492]
[1760539448325,3.42299,4044.9,4044.5,0.002]
[1760539448527,22.9880014,4044.6,4044.5,0.002]
[1760539448728,22.9880014,4044.6,4042.5,0.153]
[1760539448729,2.47329834,4043.2,4042.1,0.003]
[1760539448970,1.728,4044.3,4042.1,0.003]
[1760539449192,2.47334965,4043.1,4042.2,2.47390035]
[1760539449356,2.47317559,4043.4,4042.5,2.47369175]
[1760539449554,1.728,4044.4,4042.2,2.47390035]
[1760539449555,2.47263971,4044.3,4042.2,0.26277004]
[1760539449856,0.4438,4044.7,4042.3,0.4518]
[1760539450191,2.079572,4044.6,4042.3,0.4518]
[1760539450389,2.079572,4044.6,4042.1,0.003]
[1760539450390,3.10627692,4044.2,4042.1,0.003]
[1760539450557,3.389665,4044.0,4042.1,0.003]
[1760539450888,2.4738849,4042.3,4042.1,0.003]
[1760539451256,0.2298,4042.5,4042.1,0.003]
[1760539451801,0.2298,4043.0,4042.1,0.003]
[1760539452001,0.2298,4043.4,4042.2,2.624685]
[1760539452300,2.70297137,4043.4,4042.5,2.47371662]
[1760539452600,2.70297137,4043.4,4042.1,0.003]
[1760539452601,0.2298,4043.4,4042.1,0.003]
[1760539452890,0.2298,4043.4,4042.5,2.47365855]
[1760539453088,2.47324802,4043.3,4042.5,2.47365855]
[1760539453388,0.2298,4043.4,4042.4,2.47377795]
[1760539453701,0.2298,4043.4,4042.1,2.62771109]
[1760539453702,0.2298,4043.4,4042.1,0.1538]
[1760539453854,0.2298,4043.4,4042.5,2.47371261]
[1760539454057,0.2298,4043.4,4042.1,0.1538]
[1760539454258,2.47336126,4043.1,4042.3,2.47383099]
[1760539454457,0.2298,4043.8,4042.1,0.003]
[1760539454664,0.4438,4043.1,4042.1,0.003]
[1760539454882,2.47370825,4042.6,4042.1,0.003]
[1760539455100,2.47390035,4042.2,4042.1,0.003]
[1760539455260,2.47388292,4042.3,4042.1,0.003]
[1760539455457,2.91770035,4042.2,4042.1,0.003]
[1760539456902,2.47398496,4042.1,4041.0,0.00621722]
[1760539457196,2.47447654,4041.3,4041.0,0.00621722]
[1760539457377,2.47452181,4041.2,4041.0,0.00621722]
[1760539457692,0.2298,4041.6,4041.0,0.00621722]
[1760539457990,2.91837375,4041.1,4041.0,0.00621722]
[1760539459277,0.4438,4041.1,4041.0,0.00621722]
[1760539459479,2.47457216,4041.2,4041.0,0.00621722]
[1760539459764,10.15704542,4041.5,4041.0,0.00621722]
[1760539460190,2.4744731,4041.3,4041.0,0.00621722]
[1760539460386,2.47451589,4041.2,4041.0,0.00621722]
[1760539460561,0.4438,4041.2,4041.0,0.00621722]
[1760539460767,0.2298,4041.6,4041.0,0.00621722]
[1760539461099,10.15704542,4042.5,4041.1,0.1624]
[1760539461295,0.6736,4043.0,4041.1,0.1624]
[1760539461598,3.14702797,4043.0,4041.8,2.47412388]
[1760539461898,3.14702797,4043.0,4041.1,2.63693077]
[1760539461899,3.14705607,4043.0,4041.1,2.63693077]
[1760539462107,2.47375077,4042.5,4041.1,0.1624]
[1760539462274,2.47366641,4042.6,4041.8,2.47410038]
[1760539462468,2.47361136,4042.7,4041.9,2.47407374]
[1760539462664,0.2298,4043.0,4042.0,2.47399776]
[1760539462916,0.2298,4043.0,4042.0,2.47402276]
[1760539463115,2.5939113,4043.3,4041.9,0.1508]
[1760539463295,0.4438,4043.6,4042.5,2.47370854]
[1760539463608,0.4438,4043.6,4042.0,2.47402276]
[1760539463761,0.4438,4043.6,4042.6,2.47360774]
[1760539463968,2.47326654,4043.3,4042.4,2.47374792]
[1760539464175,2.47316614,4043.4,4042.6,2.47364962]
[1760539464375,2.47333757,4043.2,4042.1,2.47390177]
[1760539464597,0.56920706,4043.6,4041.9,0.1508]
[1760539464875,0.56920706,4043.6,4041.3,0.4518]
[1760539464876,9.35844,4043.3,4041.3,0.4518]
[1760539465201,2.47369246,4042.6,4041.8,2.47409858]
[1760539465406,0.2298,4042.5,4041.0,0.00821722]
[1760539465782,2.47371293,4042.6,4041.8,2.47414173]
[1760539466083,2.47371293,4042.6,4041.2,0.4518]
[1760539466084,2.47359051,4042.8,4041.9,2.47406644]
[1760539466288,0.2298,4042.9,4041.6,2.47426157]
[1760539466488,0.2298,4042.9,4041.1,0.1624]
[1760539466489,1.728,4043.4,4041.7,0.24742616]
[1760539466688,1.728,4043.4,4041.3,0.4518]